bitfinex-derivatives/quotes_BNBF0:USTF0_20250521
["timestamp","ask_amount","ask_price","bid_price","bid_amount"]
[1747801007469,0.2622684,664.28,662.82,0.60450196]
[1747801007668,0.2622684,664.28,662.83,0.60450196]
[1747801007869,0.2622684,664.28,662.84,0.60450196]
[1747801008166,0.2622684,664.28,662.85,1.7409662]
[1747801008369,0.2622684,664.28,662.86,0.60450196]
[1747801008569,0.2622684,664.28,662.87,0.9061218]
[1747801008770,0.2622684,664.28,662.88,1.7409662]
[1747801009069,0.2622684,664.28,662.89,0.60450196]
[1747801009269,0.2622684,664.28,662.9,1.7409662]
[1747801009465,0.2622684,664.28,662.91,0.6045909]
[1747801009670,0.2622684,664.28,662.92,1.74105514]
[1747801009864,0.2622684,664.28,662.92,1.13646424]
[1747801010068,0.2622684,664.28,662.93,1.13646424]
[1747801010271,0.2622684,664.28,662.93,1.43808408]
[1747801010573,0.2622684,664.28,662.94,1.13646424]
[1747801010973,0.2622684,664.28,662.95,0.60467397]
[1747801011173,0.2622684,664.28,662.95,1.13646424]
[1747801011472,0.2622684,664.28,662.96,1.13646424]
[1747801011673,2.23130411,664.39,662.96,1.13646424]
[1747801011868,2.23130411,664.39,662.97,1.13646424]
[1747801012072,0.26223381,664.38,662.98,0.30161984]
[1747801012869,0.26223381,664.38,662.99,1.13646424]
[1747801013075,0.26223381,664.38,662.98,0.30161984]
[1747801013875,0.26223381,664.38,662.67,0.26228026]
[1747801014076,0.26223381,664.38,662.68,0.60518143]
[1747801014274,0.26223381,664.38,662.69,1.74219246]
[1747801014469,0.26223381,664.38,662.7,0.60518143]
[1747801014775,2.23130411,664.44,662.71,1.74219246]
[1747801014975,0.26226049,664.37,662.72,1.74219246]
[1747801015175,0.26226049,664.37,662.73,0.60518143]
[1747801015370,0.26226049,664.37,662.74,0.90674804]
[1747801015570,0.26226049,664.37,662.75,0.60518143]
[1747801015873,0.26226049,664.37,662.76,0.60518143]
[1747801016072,0.26226049,664.37,662.77,1.74219246]
[1747801016273,0.26226049,664.37,662.78,0.60518143]
[1747801016472,0.26226049,664.37,662.74,0.30156661]
[1747801016473,0.26226049,664.37,662.79,1.74219246]
[1747801016673,0.26226049,664.37,662.8,1.74219246]
[1747801016871,0.26226049,664.37,662.81,0.60518143]
[1747801017075,0.26226049,664.37,662.82,0.60518143]
[1747801017276,0.26226049,664.37,662.83,1.74219246]
[1747801017476,0.26226049,664.37,662.84,0.60518143]
[1747801017678,2.23130411,664.44,662.85,1.74219246]
[1747801017872,2.23130411,664.44,662.85,1.13701103]
[1747801018077,2.23130411,664.44,662.8,0.30156661]
[1747801018579,2.23130411,664.44,662.81,1.13843147]
[1747801018781,2.23130411,664.44,662.82,0.30156661]
[1747801018974,0.26230596,664.43,662.82,0.30156661]
[1747801020180,2.23130411,664.33,662.41,0.29042344]
[1747801020377,2.23130411,664.33,662.42,0.6066164]
[1747801020579,2.23130411,664.33,662.43,1.74643158]
[1747801020778,2.23130411,664.33,662.44,1.74643158]
[1747801020977,2.23130411,664.33,662.45,0.6066164]
[1747801021177,2.23130411,664.33,662.46,1.74643158]
[1747801021377,2.23130411,664.33,662.47,0.6066164]
[1747801021679,2.23130411,664.33,662.48,0.90830854]
[1747801021880,2.23130411,664.33,662.49,0.6066164]
[1747801022078,2.23130411,664.33,662.49,1.13981518]
[1747801022379,2.23130411,664.33,662.5,0.60700251]
[1747801022581,2.23130411,664.33,662.51,1.74681769]
[1747801022780,2.23130411,664.33,662.51,1.13981518]
[1747801023175,2.23130411,664.33,662.48,0.30169214]
[1747801023176,2.23130411,663.81,662.48,0.30169214]
[1747801023380,2.23130411,663.81,662.51,0.30169214]
[1747801023680,2.23130411,663.81,662.52,1.74758148]
[1747801023880,2.23130411,663.81,662.53,0.60683453]
[1747801024181,2.23130411,663.81,662.54,0.60683453]
[1747801024480,0.91,663.8,662.55,0.60683453]
[1747801024681,0.91,663.8,662.56,0.60683453]
[1747801024881,0.91,663.8,662.57,1.74748399]
[1747801025074,0.91,663.8,662.57,1.14064946]
[1747801025480,0.91,663.8,662.58,1.14064946]
[1747801025780,2.23130411,663.7,662.58,1.14064946]
[1747801025982,2.23130411,663.7,662.59,1.74741829]
[1747801026180,2.23130411,663.7,662.59,1.14064946]
[1747801026476,2.23130411,663.7,662.31,0.26240782]
[1747801026477,2.23130411,663.7,662.6,1.14064946]
[1747801027181,2.23130411,663.7,662.61,1.14064946]
[1747801027382,2.23130411,663.7,662.62,0.60676105]
[1747801027581,2.23130411,663.7,662.63,1.14064946]
[1747801027876,2.23130411,663.7,662.64,1.14064946]
[1747801028382,2.23130411,663.7,662.65,1.14064946]
[1747801028580,2.23130411,663.76,662.65,1.14064946]
[1747801028780,2.23130411,663.76,662.66,1.14064946]
[1747801029286,2.23130411,663.76,662.67,1.14064946]
[1747801029582,2.23130411,663.76,662.68,0.60679975]
[1747801029783,2.23130411,663.76,662.69,1.74744921]
[1747801030083,2.23130411,663.76,662.7,2.04911322]
[1747801030284,2.23130411,663.76,662.71,0.60679975]
[1747801030579,2.23130411,663.76,662.72,1.14064946]
[1747801031182,2.23130411,663.76,662.73,1.14064946]
[1747801031383,0.91,663.8,662.73,1.14064946]
[1747801031585,0.91,663.8,662.31,0.29042344]
[1747801031780,0.91,663.8,662.32,0.60745222]
[1747801031984,0.91,663.8,662.33,0.60745222]
[1747801032286,0.91,663.8,662.34,1.14155005]
[1747801032484,0.91,663.8,662.35,0.60782962]
[1747801032685,0.91,663.8,662.36,0.90966758]
[1747801032879,0.91,663.8,662.37,0.60782962]
[1747801033080,0.91,663.8,662.38,0.60782962]
[1747801033285,0.91,663.8,662.39,1.74937967]
[1747801033481,0.91,663.8,662.4,0.60782962]
[1747801033684,0.91,663.8,662.41,1.14155005]
[1747801033986,0.91,663.8,662.42,1.14155005]
[1747801034384,0.91,663.8,662.43,1.14155005]
[1747801034582,2.23130411,663.71,662.43,1.14155005]
[1747801034786,2.23130411,663.71,662.44,1.74923434]
[1747801034986,2.23130411,663.71,662.45,0.60768429]
[1747801035288,2.23130411,663.71,662.46,1.74923434]
[1747801035481,2.23130411,663.71,662.47,0.60768429]
[1747801035680,2.23130411,663.71,662.48,0.60768429]
[1747801035882,2.23130411,663.71,662.49,1.74923434]
[1747801036086,2.23130411,663.71,662.5,0.90944137]
[1747801036387,2.23130411,663.71,662.51,0.60768429]
[1747801036585,2.23130411,663.71,662.52,0.60768429]
[1747801036786,2.23130411,663.71,662.53,0.60768429]
[1747801036986,2.23130411,663.71,662.54,1.74923434]
[1747801037187,2.23130411,663.71,662.55,0.60768429]
[1747801037387,2.23130411,663.71,662.56,1.74923434]
[1747801037590,2.23130411,663.71,662.57,0.60761781]
[1747801037788,2.23130411,663.71,662.58,1.74916786]
[1747801037987,2.23130411,663.71,662.59,0.60761781]
[1747801038190,2.23130411,663.74,662.6,0.60761781]
[1747801038387,2.23130411,663.74,662.61,0.60761781]
[1747801038588,2.23130411,663.74,662.62,1.74916786]
[1747801038785,2.23130411,663.74,662.63,1.74916786]
[1747801039089,2.23130411,663.74,662.64,0.60761781]
[1747801039289,2.23130411,663.74,662.65,0.60761781]
[1747801039489,2.23130411,663.74,662.66,1.74916786]
[1747801039690,2.23130411,663.74,662.67,0.90937489]
[1747801039889,2.23130411,663.74,662.68,1.74916786]
[1747801040088,2.23130411,663.74,662.69,0.60761781]
[1747801040290,2.23130411,663.74,662.7,1.74916786]
[1747801040489,2.23130411,663.74,662.71,0.60761781]
[1747801040689,2.23130411,663.74,662.72,0.60761781]
[1747801040886,2.23130411,663.74,662.67,0.30175708]
[1747801041092,2.23130411,663.74,662.68,0.60810199]
[1747801041385,2.23130411,663.79,662.73,0.30175708]
[1747801042792,2.23130411,663.79,662.5,0.29042344]
[1747801043090,2.23130411,663.79,662.51,0.60846066]
[1747801043291,2.23130411,663.79,662.52,1.75164274]
[1747801043590,2.23130411,663.79,662.53,0.60846066]
[1747801043791,2.23130411,663.79,662.54,1.75164274]
[1747801044090,2.23130411,663.79,662.55,1.75164274]
[1747801044294,0.91,663.8,662.56,0.60846066]
[1747801044489,0.91,663.8,662.57,0.60846066]
[1747801044691,0.91,663.8,662.58,0.60846066]
[1747801044891,0.91,663.8,662.59,1.75164274]
[1747801045187,0.91,663.8,662.6,0.60846066]
[1747801045391,0.91,663.8,662.61,1.75164274]
[1747801045592,0.91,663.8,662.62,0.60846066]
[1747801045796,0.91,663.8,662.63,0.60846066]
[1747801045991,0.91,663.8,662.64,1.75164274]
[1747801046189,0.91,663.8,662.65,0.60846066]
[1747801046393,0.91,663.8,662.66,0.60846066]
[1747801046694,0.91,663.8,662.67,1.75164274]
[1747801046894,0.91,663.8,662.68,0.60846066]
[1747801047095,0.91,663.8,662.69,1.75164274]
[1747801047395,0.91,663.8,662.7,1.75164274]
[1747801047595,2.23130411,663.79,662.71,0.60846066]
[1747801047794,2.23130411,663.79,662.72,0.60846066]
[1747801047995,2.23130411,663.79,662.73,0.60846066]
[1747801048195,2.23130411,663.79,662.74,0.60882168]
[1747801048398,2.23130411,663.79,662.69,0.30169816]
[1747801048596,2.23130411,663.79,662.7,0.60885874]
[1747801048792,2.23130411,663.79,662.71,1.75288657]
[1747801048996,2.23130411,663.79,662.72,0.9105569]
[1747801049196,2.23130411,663.79,662.73,0.60885874]
[1747801049397,2.23130411,663.79,662.74,0.60885874]
[1747801049695,2.23130411,663.79,662.72,0.30169816]
[1747801049896,2.23130411,663.79,662.73,0.60901539]
[1747801050094,2.23130411,663.79,662.74,0.60902258]
[1747801050290,2.23130411,663.76,662.44,0.29042344]
[1747801050590,2.23130411,663.76,662.45,0.60905054]
[1747801050793,2.23130411,663.76,662.44,0.29042344]
[1747801050794,2.23130411,663.76,662.46,0.60905054]
[1747801050994,2.23130411,663.76,662.47,0.60905054]
[1747801051194,2.23130411,663.76,662.48,0.60905054]
[1747801051397,2.23130411,663.76,662.49,1.75354236]
[1747801051699,2.23130411,663.76,662.5,0.91082333]
[1747801051892,2.23130411,663.76,662.51,0.60912236]
[1747801052095,2.23130411,663.76,662.52,1.75354236]
[1747801052394,2.23130411,663.76,662.53,0.60912236]
[1747801052594,2.23130411,663.76,662.54,0.60912236]
[1747801052795,2.23130411,663.76,662.55,1.75354236]
[1747801053091,0.91,663.8,662.56,0.60912236]
[1747801053400,2.23130411,663.82,662.57,1.75354236]
[1747801053598,2.23130411,663.82,662.58,0.60912236]
[1747801053798,2.23130411,663.82,662.59,1.75354236]
[1747801053998,2.23130411,663.82,662.6,0.60912236]
[1747801054200,2.23130411,663.82,662.61,1.75354236]
[1747801054498,2.23130411,663.82,662.62,0.60912236]
[1747801054698,2.23130411,663.82,662.63,1.75354236]
[1747801054898,2.23130411,663.82,662.64,0.60912236]
[1747801055093,2.23130411,663.82,662.65,1.75354236]
[1747801055293,2.23130411,663.82,662.66,0.60912236]
[1747801055493,2.23130411,663.82,662.67,0.60912236]
[1747801055705,2.23130411,663.82,662.62,0.30170097]
[1747801055897,2.23130411,663.82,662.63,0.60908044]
[1747801056096,2.23130411,663.84,662.67,0.30170097]
[1747801056293,0.896,663.81,662.67,0.30170097]
[1747801056995,0.896,663.81,662.35,0.29042344]
[1747801057199,0.896,663.81,662.36,0.60911533]
[1747801057400,0.896,663.81,662.37,1.75382567]
[1747801057700,0.896,663.81,662.38,1.75382567]
[1747801057894,0.26243255,663.8,662.39,0.60911533]
[1747801058196,0.26243255,663.8,662.4,0.60911533]
[1747801058396,0.26243255,663.8,662.41,0.60907821]
[1747801058597,0.26243255,663.8,662.42,0.60907821]
[1747801058797,0.26243255,663.8,662.43,0.60907821]
[1747801059000,0.26243255,663.8,662.44,1.75378855]
[1747801059197,2.23130411,663.73,662.45,0.60907821]
[1747801059397,2.23130411,663.73,662.46,0.60907821]
[1747801059597,2.23130411,663.73,662.47,0.60907821]
[1747801059798,2.23130411,663.73,662.48,0.60907821]
[1747801060095,2.23130411,663.73,662.49,1.75378855]
[1747801060296,2.23130411,663.73,662.5,1.75378855]
[1747801060597,2.23130411,663.73,662.51,0.60907821]
[1747801060801,2.23130411,663.73,662.52,1.75378855]
[1747801061002,2.23130411,663.73,662.53,0.60907821]
[1747801061198,2.23130411,663.73,662.54,1.75378855]
[1747801061402,2.23130411,663.73,662.55,0.60907821]
[1747801061606,2.23130411,663.73,662.49,0.30175468]
[1747801061607,2.23130411,663.73,662.56,1.75378855]
[1747801061798,2.23130411,663.73,662.57,0.60907821]
[1747801062103,2.23130411,663.73,662.58,1.75378855]
[1747801062303,2.23130411,663.73,662.59,0.60907821]
[1747801062507,2.23130411,663.6,662.6,0.60907821]
[1747801062705,2.23130411,663.6,662.61,0.60907821]
[1747801062904,2.23130411,663.6,662.62,0.60907821]
[1747801063104,2.23130411,663.6,662.63,1.75378855]
[1747801063404,2.23130411,663.6,662.64,0.91083289]
[1747801063604,2.23130411,663.6,662.65,1.75378855]
[1747801063809,2.23130411,663.6,662.66,0.60907821]
[1747801064003,2.23130411,663.6,662.67,0.60907821]
[1747801064204,2.23130411,663.6,662.68,1.75378855]
[1747801064404,2.23130411,663.6,662.69,0.60907821]
[1747801064603,2.23130411,663.6,662.7,0.60907821]
[1747801064804,2.23130411,663.6,662.64,0.30175468]
[1747801065000,2.23130411,663.6,662.65,1.75237458]
[1747801065205,2.23130411,663.6,662.65,1.14377219]
[1747801065406,2.23130411,663.68,662.66,1.75240133]
[1747801065605,2.23130411,663.68,662.67,0.60862914]
[1747801065801,2.23130411,663.68,662.68,0.60862914]
[1747801066002,2.23130411,663.68,662.69,0.60862914]
[1747801066205,2.23130411,663.68,662.7,0.60862914]
[1747801066409,2.23130411,663.68,662.71,0.60862914]
[1747801066604,2.23130411,663.68,662.65,0.30175468]
[1747801066805,2.23130411,663.68,662.66,0.91041949]
[1747801067006,2.23130411,663.68,662.67,0.60866481]
[1747801067305,2.23130411,663.68,662.68,0.60866481]
[1747801067505,2.23130411,663.68,662.69,1.75221064]
[1747801067709,2.23130411,663.68,662.7,0.60866481]
[1747801068008,2.23130411,663.78,662.71,0.60866481]
[1747801068209,2.23130411,663.78,662.7,0.30175468]
[1747801068507,2.23130411,663.78,662.71,0.60874793]
[1747801068708,2.23130411,663.78,662.7,0.30175468]
[1747801069507,2.23130411,663.78,662.38,0.29042344]
[1747801069702,2.23130411,663.78,662.39,0.60893319]
[1747801070009,0.26245531,663.77,662.4,1.7528402]
[1747801070208,0.26245531,663.77,662.41,0.60893319]
[1747801070409,0.26245531,663.77,662.42,1.7528402]
[1747801070711,0.26245531,663.77,662.43,0.60896092]
[1747801070908,0.26245531,663.77,662.44,0.60896092]
[1747801071208,0.26245531,663.77,662.45,0.60896092]
[1747801071407,0.26245531,663.77,662.46,1.75286793]
[1747801071612,2.23130411,663.69,662.47,0.60896092]
[1747801071808,2.23130411,663.69,662.48,0.60896092]
[1747801072107,2.23130411,663.69,662.49,0.60896092]
[1747801072309,2.23130411,663.69,662.5,0.60896092]
[1747801072509,2.23130411,663.69,662.51,0.60896092]
[1747801072708,2.23130411,663.69,662.52,0.60896092]
[1747801072911,2.23130411,663.69,662.53,0.60896092]
[1747801073209,2.23130411,663.69,662.54,0.91071997]
[1747801073412,2.23130411,663.69,662.55,1.75286793]
[1747801073710,2.23130411,663.69,662.56,0.60896092]
[1747801073911,2.23130411,663.69,662.57,0.60896092]
[1747801074212,2.23130411,663.69,662.58,0.60970834]
[1747801074411,2.23130411,663.69,662.59,0.60970834]
[1747801074611,2.23130411,663.69,662.6,0.60970834]
[1747801074815,2.23130411,663.69,662.54,0.30175905]
[1747801075110,2.49374161,663.69,662.55,1.75537152]
[1747801075312,2.23130411,663.38,662.56,1.75537152]
[1747801075513,2.23130411,663.38,662.57,0.60988303]
[1747801075714,2.23130411,663.38,662.58,0.60988303]
[1747801075914,2.23130411,663.38,662.59,0.60988303]
[1747801076115,2.23130411,663.38,662.6,0.60988303]
[1747801076315,2.23130411,663.38,662.61,0.60988303]
[1747801076515,2.23130411,663.38,662.62,0.60988303]
[1747801076715,2.23130411,663.38,662.63,0.60988303]
[1747801076916,2.23130411,663.38,662.31,0.29042344]
[1747801077117,2.23130411,663.38,662.32,0.61030387]
[1747801077312,2.23130411,663.38,662.33,1.75684739]
[1747801077515,2.23130411,663.38,662.34,0.61028114]
[1747801077713,2.23130411,663.38,662.35,0.61028114]
[1747801077913,2.23130411,663.42,662.36,1.75682466]
[1747801078118,2.23130411,663.42,662.37,0.61028114]
[1747801078317,2.23130411,663.42,662.38,1.75682466]
[1747801078616,2.23130411,663.42,662.39,0.61028114]
[1747801078820,2.23130411,663.42,662.4,0.61028114]
[1747801079017,2.23130411,663.42,662.41,0.61028114]
[1747801079220,2.23130411,663.42,662.42,1.75721467]
[1747801079418,2.23130411,663.42,662.43,0.61067115]
[1747801079615,2.23130411,663.42,662.44,0.61067115]
[1747801079819,2.23130411,663.42,662.45,1.75721467]
[1747801080020,2.23130411,663.42,662.46,0.61067115]
[1747801080322,2.23130411,663.49,662.47,1.75721467]
[1747801080620,2.23130411,663.49,662.48,1.75721467]
[1747801080920,2.23130411,663.49,662.49,0.61051648]
[1747801081220,2.23130411,663.49,662.5,1.75706]
[1747801081417,2.23130411,663.49,662.51,0.61051648]
[1747801081618,2.23130411,663.49,662.52,0.61051648]
[1747801081815,2.23130411,663.49,662.53,0.61051648]
[1747801082013,2.23130411,663.49,662.54,0.61051648]
[1747801082214,2.23130411,663.49,662.55,1.75706]
[1747801082418,2.23130411,663.49,662.56,0.61051648]
[1747801082619,2.23130411,663.53,662.57,1.75706]
[1747801082820,2.23130411,663.53,662.58,0.61051648]
[1747801083020,2.23130411,663.53,662.59,0.61051648]
[1747801083222,2.23130411,663.53,662.56,0.30179256]
[1747801083223,1.188,663.52,662.6,1.75706]
[1747801083521,1.188,663.52,662.61,0.61051648]
[1747801083721,1.188,663.52,662.62,0.91230904]
[1747801083921,1.188,663.52,662.63,0.61051648]
[1747801084121,1.188,663.52,662.64,0.61051648]
[1747801084322,1.188,663.52,662.65,0.61087652]
[1747801084622,1.188,663.52,662.66,1.75742004]
[1747801084820,1.188,663.52,662.67,0.61087652]
[1747801085122,1.188,663.52,662.68,0.61087652]
[1747801085322,2.23130411,663.48,662.69,0.61087652]
[1747801085524,2.23130411,663.48,662.68,0.30179256]
[1747801086423,2.23130411,663.48,662.41,0.29042344]
[1747801086622,2.23130411,663.48,662.42,0.61094211]
[1747801086825,2.23130411,663.48,662.43,0.61094211]
[1747801087019,2.23130411,663.48,662.44,1.75882097]
[1747801087324,2.23130411,663.48,662.45,0.61098796]
[1747801087523,2.23130411,663.48,662.46,0.61098796]
[1747801087724,2.23130411,663.48,662.47,1.75886682]
[1747801088024,2.23130411,663.43,662.48,0.61098796]
[1747801088219,2.23130411,663.43,662.49,1.75886682]
[1747801088421,2.23130411,663.43,662.5,0.61098796]
[1747801088624,2.23130411,663.43,662.51,1.75886682]
[1747801088821,2.23130411,663.43,662.52,0.61098796]
[1747801089025,2.23130411,663.43,662.53,0.61098796]
[1747801089325,2.23130411,663.43,662.54,0.61098796]
[1747801089520,2.23130411,663.43,662.55,0.61098796]
[1747801089725,2.23130411,663.43,662.56,1.75886682]
[1747801089920,2.23130411,663.43,662.57,0.61098796]
[1747801090120,2.23130411,663.43,662.58,1.75886682]
[1747801090321,2.23130411,663.43,662.59,0.61098796]
[1747801090523,2.23130411,663.43,662.58,1.14787886]
[1747801090524,2.23130411,663.43,662.6,0.61098796]
[1747801090720,2.23130411,663.45,662.61,0.61135784]
[1747801090925,2.23130411,663.45,662.62,1.7592367]
[1747801091224,2.23130411,663.45,662.63,0.61135784]
[1747801091424,2.23130411,663.45,662.64,0.61135784]
[1747801091624,2.23130411,663.45,662.59,0.30179126]
[1747801092129,2.23130411,663.45,662.36,0.29042344]
[1747801092325,2.23130411,663.45,662.37,0.6117374]
[1747801092528,2.23130411,663.45,662.38,0.611594]
[1747801092728,2.23130411,663.45,662.39,0.611594]
[1747801092924,2.23130411,663.45,662.4,1.76067883]
[1747801093129,2.23130411,663.45,662.41,0.611594]
[1747801093329,2.23130411,663.45,662.42,1.76067883]
[1747801093530,2.23130411,663.45,662.43,0.611594]
[1747801093731,2.23130411,663.45,662.42,1.14908483]
[1747801093928,0.26252857,663.44,662.36,0.29042344]
[1747801094230,2.23130411,663.42,662.42,0.30186354]
[1747801095534,2.23130411,663.42,662.15,0.29042344]
[1747801095729,2.23130411,663.42,662.16,1.76013468]
[1747801095931,2.23130411,663.42,662.17,0.61127619]
[1747801096137,2.23130411,663.42,662.18,0.61127619]
[1747801096436,2.23130411,663.42,662.19,0.61127619]
[1747801096637,2.23130411,663.42,662.2,1.76013143]
[1747801096836,2.23130411,663.42,662.21,0.61127619]
[1747801097135,2.23130411,663.42,662.2,1.14885524]
[1747801097136,2.23130411,663.42,662.22,1.76013143]
[1747801097333,2.23130411,663.42,662.23,0.61127619]
[1747801097530,2.23130411,663.42,662.24,0.61127619]
[1747801097737,2.23130411,663.29,662.25,1.76013143]
[1747801098037,2.23130411,663.29,662.26,0.61127619]
[1747801098238,2.23130411,663.29,662.27,1.76013143]
[1747801098537,2.23130411,663.29,662.27,1.14885524]
[1747801098740,2.23130411,663.29,662.05,0.29042344]
[1747801098930,2.23130411,663.29,662.06,0.61117834]
[1747801099130,2.23130411,663.29,662.07,0.61117834]
[1747801099437,2.23130411,663.29,662.08,0.61085171]
[1747801099637,2.23130411,663.29,662.09,0.61085171]
[1747801099834,2.23130411,663.29,662.1,1.75953697]
[1747801100036,2.23130411,663.29,662.11,0.61085171]
[1747801100342,2.23130411,663.26,662.12,1.75953697]
[1747801100538,2.23130411,663.26,662.13,0.61085171]
[1747801100736,2.23130411,663.26,662.14,1.75953697]
[1747801100933,2.23130411,663.26,662.15,0.61085171]
[1747801101134,2.23130411,663.26,662.16,0.61049058]
[1747801101437,2.23130411,663.26,662.17,1.75917584]
[1747801101637,2.23130411,663.26,662.18,1.75917584]
[1747801101939,2.23130411,663.26,662.19,1.75917584]
[1747801102138,2.23130411,663.26,662.2,0.61049058]
[1747801102337,2.23130411,663.26,662.21,1.75917584]
[1747801102536,2.23130411,663.26,662.22,0.61049058]
[1747801102740,2.23130411,663.26,662.23,0.61003696]
[1747801102939,2.23130411,663.26,662.24,0.61003696]
[1747801103141,2.23130411,663.26,662.25,0.61003696]
[1747801103340,2.23130411,663.26,662.26,1.75872222]
[1747801103541,2.23130411,663.26,662.27,0.61003696]
[1747801103741,0.26258305,663.41,662.28,0.61003696]
[1747801103944,2.23130411,663.43,662.29,0.61003696]
[1747801104141,2.23130411,663.43,662.3,1.75573938]
[1747801104337,2.23130411,663.43,662.31,0.61003696]
[1747801104540,2.23130411,663.43,662.32,0.61003696]
[1747801104743,2.23130411,663.43,662.33,0.61003696]
[1747801104942,2.23130411,663.43,662.34,2.05769414]
[1747801105138,2.23130411,663.43,662.35,0.61003696]
[1747801105342,2.23130411,663.43,662.36,0.61003696]
[1747801105538,2.23130411,663.43,662.34,0.30195476]
[1747801105740,2.23130411,663.43,662.35,0.60974036]
[1747801105940,2.23130411,663.43,662.36,0.60974036]
[1747801106138,2.23130411,663.43,662.37,0.60974036]
[1747801106338,2.23130411,663.5,662.36,0.30195476]
[1747801106541,2.23130411,663.5,662.37,0.60971523]
[1747801106739,2.23130411,663.5,662.36,0.30195476]
[1747801107442,2.23130411,663.5,662.37,0.30195476]
[1747801108745,1.004,663.49,662.37,0.30195476]
[1747801109844,2.23130411,663.34,661.98,0.29042344]
[1747801110044,2.23130411,663.34,661.99,0.60907627]
[1747801110245,2.23130411,663.34,662.0,1.75472399]
[1747801110442,2.23130411,663.34,662.01,0.60907627]
[1747801110639,2.23130411,663.34,662.02,0.60907627]
[1747801110842,2.23130411,663.34,661.98,0.29042344]
[1747801110843,2.23130411,663.34,662.03,1.75472399]
[1747801111039,2.23130411,663.34,662.04,0.60907627]
[1747801111241,2.23130411,663.34,662.05,0.60907627]
[1747801111440,1.004,663.49,662.06,0.60907627]
[1747801111741,1.004,663.49,662.07,0.60907627]
[1747801111940,0.26258602,663.48,662.08,0.60907627]
[1747801112140,0.26258602,663.48,662.09,1.75472399]
[1747801112344,0.26258602,663.48,662.1,0.60907627]
[1747801112545,0.26258602,663.48,662.11,1.75472399]
[1747801112739,0.26258602,663.48,662.12,0.60907627]
[1747801112944,2.24785848,663.15,662.13,0.60907627]
[1747801113145,2.24785848,663.15,662.14,0.60889657]
[1747801113347,2.24785848,663.15,662.15,0.60889657]
[1747801113540,2.24785848,663.15,662.16,0.60889657]
[1747801113745,2.24785848,663.15,662.17,1.75454429]
[1747801113943,2.24785848,663.15,662.18,0.60889657]
[1747801114139,2.24785848,663.15,662.19,1.75454429]
[1747801114342,2.24785848,663.15,662.2,0.60889657]
[1747801114543,2.24785848,663.15,662.21,0.91085082]
[1747801114740,2.24785848,663.15,662.22,0.60889657]
[1747801114945,2.24785848,663.15,662.23,1.75454429]
[1747801115145,2.24785848,663.15,662.24,0.60889657]
[1747801115345,2.24785848,663.15,662.25,0.60889657]
[1747801115544,2.24785848,663.15,662.26,0.60889657]
[1747801115742,2.24785848,663.15,662.27,1.75454429]
[1747801116043,2.24785848,663.4,662.27,1.14564772]
[1747801116348,2.24785848,663.4,662.26,0.30195425]
[1747801117046,0.26258503,663.39,662.26,0.30195425]
[1747801117246,0.26258503,663.39,662.0,0.29042344]
[1747801117542,0.26258503,663.39,662.01,0.60890614]
[1747801117742,0.26258503,663.39,662.02,0.60890614]
[1747801117947,0.26258503,663.39,662.03,0.60890614]
[1747801118148,0.26258503,663.39,662.04,0.60890614]
[1747801118347,0.26258503,663.39,662.05,1.75408745]
[1747801118544,2.24785848,663.33,662.06,0.60897356]
[1747801118748,2.24785848,663.33,662.07,0.60897356]
[1747801118949,2.24785848,663.33,662.08,0.60897356]
[1747801119149,2.24785848,663.33,662.09,0.60897356]
[1747801119352,2.24785848,663.33,662.1,1.75408745]
[1747801119551,2.24785848,663.33,662.11,0.60897356]
[1747801119751,2.24785848,663.33,662.12,2.05601244]
[1747801119944,2.24785848,663.33,662.13,0.60897356]
[1747801120149,2.24785848,663.33,662.14,0.60897356]
[1747801120348,2.24785848,663.33,662.15,1.75408745]
[1747801120546,2.24785848,663.33,662.16,0.60897356]
[1747801120746,2.24785848,663.33,662.17,0.60897356]
[1747801120951,2.24785848,663.33,662.18,1.75408745]
[1747801121249,2.24785848,663.33,662.19,0.60897356]
[1747801121449,2.24785848,663.33,662.2,1.75408745]
[1747801121650,2.24785848,663.33,662.21,0.60897356]
[1747801121952,2.24785848,663.33,662.22,1.75408745]
[1747801122252,2.24785848,663.33,662.23,0.60897356]
[1747801122452,2.24785848,663.33,662.24,0.91089855]
[1747801122645,2.24785848,663.33,662.25,1.75408745]
[1747801122849,2.24785848,663.33,662.26,0.60897356]
[1747801123051,2.24785848,663.33,662.27,1.75408745]
[1747801123245,2.24785848,663.33,662.28,0.60897356]
[1747801123449,2.24785848,663.33,662.29,0.60897356]
[1747801123649,2.24785848,663.33,662.28,1.14511389]
[1747801123852,2.24785848,663.33,662.24,0.30192499]
[1747801124046,2.24785848,663.33,662.25,0.60908763]
[1747801124256,2.24785848,663.33,661.95,0.26256819]
[1747801124257,2.24785848,663.31,661.95,0.26256819]
[1747801124550,2.24785848,663.31,661.96,0.60914905]
[1747801124749,2.24785848,663.31,661.97,0.60914905]
[1747801124949,2.24785848,663.31,661.98,0.60914905]
[1747801125152,2.24785848,663.31,661.99,0.60924846]
[1747801125451,2.24785848,663.31,662.0,1.75450095]
[1747801125647,2.24785848,663.31,662.01,1.75450095]
[1747801125847,2.24785848,663.31,662.02,0.60924846]